fUSD/lending_fUSD_20260326
["ID","MTS","AMOUNT","RATE_DAILY","PERIOD"]
[418904962,1774521034091,-500.0,9.452e-05,2]
[418904963,1774521034100,-500.0,9.452e-05,2]
[418904964,1774521034110,-622.0,9.452e-05,2]
[418904965,1774521034119,-502.67280258,9.473e-05,2]
[418904966,1774521034128,-500.0,9.481e-05,2]
[418904967,1774521034138,-660.68,9.481e-05,2]
[418904968,1774521034148,-549.39039026,9.499e-05,3]
[418904969,1774521034157,-18175.16327839,9.5e-05,3]
[418904970,1774521034171,-1254.41808677,9.5e-05,3]
[418904971,1774521034183,-512.34895898,9.5e-05,3]
[418904972,1774521034197,-347.54665094,9.5e-05,3]
[418904979,1774521038371,-1523.0,9e-05,2]
[418904980,1774521038382,-1523.0,9e-05,2]
[418904981,1774521038394,-1523.0,9e-05,2]
[418904982,1774521038403,-7531.85881274,9.5e-05,3]
[418904983,1774521038428,-540.01220046,9.5e-05,3]
[418904984,1774521038542,-750.97674804,9.5e-05,3]
[418904985,1774521038555,-398.07600056,9.5e-05,3]
[418904986,1774521038601,-73500.12111129,9.5e-05,3]
[418904987,1774521038614,-1086.4395005,9.5e-05,3]
[418904988,1774521038626,-7309.1,9.5e-05,3]
[418904995,1774521040949,-1523.0,9e-05,2]
[418904996,1774521040959,-1523.0,9e-05,2]
[418904997,1774521040969,-4.66008016,9e-05,2]
[418904998,1774521040980,-506.93,9e-05,2]
[418904999,1774521041008,-1011.40991984,9e-05,2]
[418905000,1774521041017,-3901.94365023,9.5e-05,3]
[418905001,1774521041028,-1077.10095055,9.5e-05,3]
[418905009,1774521046265,-500.0,8.566e-05,2]
[418905010,1774521046275,-1523.0,9e-05,2]
[418905011,1774521046287,-825.04333242,9e-05,2]
[418905012,1774521046494,-697.95666758,9e-05,2]
[418905013,1774521046506,-443.64333242,9e-05,2]
[418905014,1774521046518,-1079.35666758,9e-05,2]
[418905015,1774521046529,-1157.57932035,9e-05,2]
[418905016,1774521046609,-365.42067965,9e-05,2]
[418905017,1774521046619,-447.56013236,9e-05,2]
[418905018,1774521046632,-1075.43986764,9e-05,2]
[418905019,1774521046643,-719.8390774,9e-05,2]
[418905020,1774521046653,-1523.0,9e-05,2]
[418905021,1774521046662,-421.70543452,9.291e-05,2]
[418905022,1774521046672,-15582.00098209,9.5e-05,3]
[418905023,1774521046684,-2005.77517545,9.5e-05,3]
[418905024,1774521046695,-21275.52357828,9.5e-05,3]
[418905025,1774521046708,-1796.96879442,9.5e-05,3]
[418905026,1774521046731,-1826.80243167,9.5e-05,3]
[418905027,1774521046793,-753.06054131,9.5e-05,3]
[418905041,1774521048001,-243.36526434,9e-05,2]
[418905042,1774521048149,-624.68867735,9e-05,2]
[418905043,1774521048428,-654.94605831,9e-05,2]
[418905044,1774521048438,-547.60810465,9e-05,2]
[418905055,1774521349062,900.0,7.774e-05,2]
[418905056,1774521411850,941.63,7.485e-05,2]
[418905059,1774521523006,200.0,7.938e-05,2]
[418905060,1774521534791,733.58,7.706e-05,2]
[418905061,1774521660940,4549.29,7.904e-05,2]
[418905062,1774521691668,150.0,7.832e-05,2]
[418905063,1774521691927,170.33,6.317e-05,2]
[418905064,1774521692140,170.33,7.37e-05,2]
[418905065,1774521719706,127.74,6.978e-05,2]
[418905066,1774521719733,640.74,6.978e-05,2]
[418905067,1774521720231,402.04,7.561e-05,2]
[418905068,1774521825293,4061.27,7.873e-05,2]
[418905069,1774521840480,1500.0,7.865e-05,2]
[418905070,1774521843622,790.72,7.369e-05,2]
[418905071,1774521953870,260.06,7.836e-05,2]
[418905072,1774521954126,-155.58847373,8.002e-05,2]
[418905073,1774521991730,376.53,3.918e-05,2]
[418905074,1774521991923,376.53,4.124e-05,2]
[418905075,1774521992124,376.53,4.33e-05,2]
[418905076,1774521992458,376.53,4.537e-05,2]
[418905077,1774521992618,376.53,4.743e-05,2]
[418905078,1774521992849,376.53,4.949e-05,2]
[418905079,1774521993331,86.0,5.155e-05,2]
[418905080,1774521993358,290.53,5.155e-05,2]
[418905081,1774521993422,376.53,5.362e-05,2]
[418905082,1774521993485,376.53,5.568e-05,2]
[418905083,1774521993629,376.53,5.774e-05,2]
[418905084,1774521994249,376.53,5.98e-05,2]
[418905085,1774521994299,376.53,6.186e-05,2]
[418905086,1774521994356,376.53,6.393e-05,2]
[418905087,1774521994439,376.53,6.599e-05,2]
[418905088,1774521994634,376.53,6.805e-05,2]
[418905089,1774521994838,376.53,7.011e-05,2]
[418905090,1774521995025,376.53,7.218e-05,2]
[418905091,1774521995215,376.53,7.424e-05,2]
[418905092,1774521995405,376.53,7.63e-05,2]
[418905093,1774521995600,376.53,7.836e-05,2]
[418905094,1774522052019,900.0,8.8e-05,3]
[418905095,1774522054140,1800.0,8.9e-05,3]
[418905096,1774522056208,2700.0,9e-05,3]
[418905097,1774522212447,625.51,7.454e-05,2]
[418905100,1774522231470,-417.20280143,7.986e-05,2]
[418905101,1774522231524,-82.79719857,7.986e-05,2]
[418905102,1774522231534,-231.0,7.986e-05,2]
[418905103,1774522231544,-89.89326287,8.002e-05,2]
[418905104,1774522231577,-854.5182634,8.002e-05,2]
[418905105,1774522231587,-13.09626627,8.038e-05,2]
[418905106,1774522231598,-236.90373373,8.038e-05,2]
[418905107,1774522231608,-352.31247552,8.083e-05,2]
[418905108,1774522231617,-152.54,8.219e-05,2]
[418905109,1774522231626,-500.0,8.241e-05,2]
[418905110,1774522231635,-923.31,8.263e-05,2]
[418905111,1774522231645,-170.33,8.423e-05,2]
[418905112,1774522231654,-1500.0,8.628e-05,2]
[418905113,1774522231663,-300.0,8.72e-05,2]
[418905114,1774522231673,-300.0,8.72e-05,2]
[418905115,1774522231683,-1200.0,8.72e-05,2]
[418905116,1774522231693,-150.0,8.721e-05,2]
[418905117,1774522231702,-560.27337598,8.721e-05,2]
[418905118,1774522231715,-639.72662402,8.721e-05,2]
[418905119,1774522231724,-500.0,8.722e-05,2]
[418905120,1774522231734,-500.0,8.722e-05,2]
[418905121,1774522231745,-500.0,8.722e-05,2]
[418905122,1774522231754,-500.0,8.722e-05,2]
[418905123,1774522231766,-500.0,8.722e-05,2]
[418905124,1774522231776,-500.0,8.722e-05,2]
[418905125,1774522231786,-500.0,8.722e-05,2]
[418905127,1774522231795,-500.0,8.722e-05,2]
[418905129,1774522231805,-500.0,8.722e-05,2]
[418905130,1774522231814,-500.0,8.722e-05,2]
[418905131,1774522231823,-500.0,8.722e-05,2]
[418905132,1774522231833,-500.0,8.722e-05,2]
[418905133,1774522231842,-500.0,8.722e-05,2]
[418905135,1774522231852,-454.89793297,8.73e-05,2]
[418905137,1774522231861,-429.59323127,8.73e-05,2]
[418905139,1774522231871,-500.74189398,8.73e-05,2]
[418905141,1774522231880,-2712.52428547,8.761e-05,2]
[418905142,1774522231892,-1770.52571453,8.761e-05,2]
[418905144,1774522231902,-1260.75,8.768e-05,2]
[418905146,1774522231910,-500.0,8.777e-05,2]
[418905148,1774522231920,-250.0,8.802e-05,2]
[418905151,1774522231930,-500.0,8.832e-05,2]
[418905153,1774522231940,-979.16666667,8.869e-05,2]
[418905154,1774522231950,-160.0,8.869e-05,2]
[418905155,1774522231959,-160.0,8.869e-05,2]
[418905156,1774522231968,-500.0,8.887e-05,2]
[418905157,1774522231977,-3332.0576188,8.899e-05,2]
[418905158,1774522231997,-7507.3091812,8.899e-05,2]
[418905159,1774522232006,-500.0,8.942e-05,2]
[418905160,1774522232016,-1886.85,8.943e-05,2]
[418905161,1774522232025,-500.0,8.997e-05,2]
[418905162,1774522232035,-30496.35201831,8.999e-05,2]
[418905163,1774522232044,-500.0,9e-05,2]
[418905164,1774522232054,-500.0,9.052e-05,2]
[418905165,1774522232065,-500.0,9.107e-05,2]
[418905166,1774522232075,-500.0,9.162e-05,2]
[418905167,1774522232085,-559.03185138,9.162e-05,2]
[418905168,1774522232094,-500.0,9.178e-05,2]
[418905169,1774522232103,-500.0,9.178e-05,2]
[418905170,1774522232114,-500.0,9.178e-05,2]
[418905171,1774522232123,-500.0,9.178e-05,2]
[418905172,1774522232133,-500.0,9.178e-05,2]
[418905173,1774522232143,-500.0,9.178e-05,2]
[418905174,1774522232152,-500.0,9.178e-05,2]
[418905175,1774522232162,-500.0,9.178e-05,2]
[418905176,1774522232172,-500.0,9.178e-05,2]
[418905177,1774522232182,-487.16585343,9.178e-05,2]
[418905178,1774522232191,-500.0,9.217e-05,2]
[418905179,1774522232201,-500.0,9.272e-05,2]
[418905180,1774522232211,-281.13695635,9.291e-05,2]
[418905181,1774522232221,-500.0,9.327e-05,2]
[418905182,1774522232231,-974.61,9.362e-05,2]
[418905183,1774522232241,-155.0,9.398e-05,2]
[418905184,1774522232250,-500.0,9.399e-05,2]
[418905185,1774522232260,-500.0,9.399e-05,2]
[418905186,1774522232270,-226.0531248,9.399e-05,2]
[418905187,1774522232279,-500.0,9.399e-05,2]
[418905188,1774522232289,-500.0,9.399e-05,2]
[418905189,1774522232300,-207.35455012,9.399e-05,2]
[418905190,1774522232310,-302.80244377,9.399e-05,2]
[418905191,1774522232319,-500.0,9.399e-05,2]
[418905192,1774522232330,-500.0,9.399e-05,2]
[418905193,1774522232339,-500.0,9.399e-05,2]
[418905194,1774522232349,-500.0,9.399e-05,2]
[418905195,1774522232358,-500.0,9.399e-05,2]
[418905196,1774522232368,-500.0,9.399e-05,2]
[418905197,1774522232378,-500.0,9.399e-05,2]
[418905198,1774522232387,-500.0,9.399e-05,2]
[418905199,1774522232396,-500.0,9.399e-05,2]
[418905200,1774522232406,-500.0,9.399e-05,2]
[418905201,1774522232415,-500.0,9.399e-05,2]
[418905202,1774522232425,-441.83527436,9.399e-05,2]
[418905203,1774522232435,-500.0,9.399e-05,2]
[418905204,1774522232444,-500.0,9.399e-05,2]
[418905205,1774522232453,-500.0,9.399e-05,2]
[418905206,1774522232463,-500.0,9.399e-05,2]
[418905207,1774522232472,-500.0,9.399e-05,2]
[418905208,1774522232481,-500.0,9.399e-05,2]
[418905209,1774522232490,-500.0,9.399e-05,2]
[418905210,1774522232500,-500.0,9.399e-05,2]
[418905211,1774522232510,-500.0,9.399e-05,2]
[418905212,1774522232520,-500.0,9.399e-05,2]
[418905213,1774522232529,-500.0,9.399e-05,2]
[418905214,1774522232539,-500.0,9.399e-05,2]
[418905215,1774522232549,-500.0,9.399e-05,2]
[418905216,1774522232560,-500.0,9.399e-05,2]
[418905217,1774522232570,-500.0,9.399e-05,2]
[418905218,1774522232579,-500.0,9.399e-05,2]
[418905219,1774522232588,-500.0,9.399e-05,2]
[418905220,1774522232597,-500.0,9.399e-05,2]
[418905221,1774522232607,-500.0,9.399e-05,2]
[418905222,1774522232617,-500.0,9.399e-05,2]
[418905223,1774522232626,-500.0,9.399e-05,2]
[418905224,1774522232635,-500.0,9.399e-05,2]
[418905225,1774522232645,-500.0,9.399e-05,2]
[418905226,1774522232654,-500.0,9.399e-05,2]
[418905227,1774522232663,-362.30434034,9.399e-05,2]
[418905228,1774522232673,-500.0,9.399e-05,2]
[418905229,1774522232683,-500.0,9.399e-05,2]
[418905230,1774522232692,-500.0,9.399e-05,2]
[418905231,1774522232701,-500.0,9.399e-05,2]
[418905232,1774522232712,-500.0,9.399e-05,2]
[418905233,1774522232721,-500.0,9.399e-05,2]
[418905234,1774522232730,-500.0,9.399e-05,2]
[418905235,1774522232740,-500.0,9.399e-05,2]
[418905236,1774522232750,-500.0,9.399e-05,2]
[418905237,1774522232759,-500.0,9.399e-05,2]
[418905238,1774522232769,-500.0,9.399e-05,2]
[418905239,1774522232778,-637.55952837,9.399e-05,2]
[418905240,1774522232787,-500.0,9.399e-05,2]
[418905241,1774522232797,-500.0,9.399e-05,2]
[418905242,1774522232806,-500.0,9.399e-05,2]
[418905243,1774522232816,-500.0,9.399e-05,2]
[418905244,1774522232825,-500.91130871,9.399e-05,2]
[418905245,1774522232835,-516.0119567,9.399e-05,2]
[418905246,1774522232844,-500.0,9.399e-05,2]
[418905247,1774522232855,-500.0,9.399e-05,2]
[418905248,1774522232864,-500.0,9.399e-05,2]
[418905249,1774522232875,-460.77998355,9.399e-05,2]
[418905250,1774522232885,-460.77998355,9.399e-05,2]
[418905251,1774522232894,-347.57641353,9.399e-05,2]
[418905252,1774522232904,-905260.89149266,9.4e-05,2]
[418905253,1774522233244,-41557.44268923,9.4e-05,2]
[418905254,1774522233255,-12292.980294,9.4e-05,2]
[418905255,1774522233268,-201369.46350229,9.4e-05,2]
[418905256,1774522233281,-1047.79,9.4e-05,2]
[418905257,1774522233292,-1097.89225197,9.4e-05,2]
[418905258,1774522233304,-255.51004428,9.4e-05,2]
[418905263,1774522237583,-720.614,8.781e-05,2]
[418905264,1774522237593,-1244.4108324,9.4e-05,2]
[418905267,1774522243209,-298027.41105998,9.4e-05,2]
[418905268,1774522243221,-3244.72416054,9.4e-05,2]
[418905278,1774522245725,-34601.48367265,9.4e-05,2]
[418905279,1774522245735,-2472.31293184,9.41e-05,2]
[418905280,1774522245744,-250.0,9.418e-05,2]
[418905281,1774522245754,-197627.5,9.44e-05,2]
[418905282,1774522245763,-8520.61575865,9.44e-05,2]
[418905283,1774522245775,-10247.93007847,9.44e-05,2]
[418905284,1774522245853,-132.79958367,9.44e-05,2]
[418905285,1774522245865,-852.32990181,9.44e-05,2]
[418905286,1774522245875,-1990.08785845,9.44e-05,2]
[418905287,1774522246233,-2072.54365153,9.44e-05,2]
[418905288,1774522246244,-517.44824,9.44e-05,2]
[418905289,1774522246255,-1392.31895314,9.44e-05,2]
[418905303,1774522370764,500.0,7.886e-05,2]
[418905304,1774522511705,182.898,7.886e-05,2]
[418905306,1774522578883,600.0,7.662e-05,2]
[418905308,1774522641781,1100.0,7.506e-05,2]
[418905309,1774522704652,1080.0,7.209e-05,2]
[418905310,1774522712085,726.182,7.87e-05,2]
[418905311,1774522712106,1464.998,7.87e-05,2]
[418905312,1774522828229,264.92,7.648e-05,2]
[418905320,1774522847737,1852.42,7.834e-05,2]
[418905324,1774522952060,511.75,7.665e-05,2]
[418905325,1774523013731,398.21,7.443e-05,2]
[418905341,1774523138790,-300.0,7.984e-05,2]
[418905342,1774523138817,-300.0,7.984e-05,2]
[418905343,1774523138844,-183.23060351,7.984e-05,2]
[418905344,1774523138878,-1016.76939649,7.984e-05,2]
[418905345,1774523138905,-129.69523361,7.984e-05,2]
[418905346,1774523139116,-170.30476639,7.984e-05,2]
[418905347,1774523139141,-105.02940988,7.984e-05,2]
[418905348,1774523139210,-168.7183711,7.984e-05,2]
[418905367,1774523242348,600.0,8.7e-05,3]
[418905368,1774523244241,-26.25221902,7.984e-05,2]
[418905369,1774523244267,-1200.0,7.984e-05,2]
[418905370,1774523244291,-300.0,7.984e-05,2]
[418905371,1774523244315,-250.0,7.984e-05,2]
[418905372,1774523244339,-500.0,7.985e-05,2]
[418905373,1774523244362,-500.0,7.985e-05,2]
[418905374,1774523244387,-500.0,7.985e-05,2]
[418905375,1774523244410,-238.60721477,7.985e-05,2]
[418905376,1774523244434,-231.0,7.985e-05,2]
[418905377,1774523244458,-979.14056621,7.986e-05,2]
[418905378,1774523244507,1300.0,8.8e-05,3]
[418905379,1774523246541,1900.0,8.9e-05,3]
[418905380,1774523248889,2600.0,9e-05,3]
[418905383,1774523288205,500.0,7.866e-05,2]
[418905384,1774523358323,5007.712,7.849e-05,2]
[418905385,1774523358349,6349.928,7.849e-05,2]
[418905386,1774523380208,970.0,7.701e-05,2]
[418905393,1774523427901,1538.0,8.787e-05,5]
[418905403,1774523431735,-614.13943379,7.986e-05,2]
[418905404,1774523431745,-213.0,7.986e-05,2]
[418905405,1774523431755,-1600.0,7.986e-05,2]
[418905406,1774523431764,-231.0,7.986e-05,2]
[418905407,1774523431774,-253.55651067,7.989e-05,2]
[418905408,1774523431783,-300.0,7.999e-05,2]
[418905409,1774523431793,-1200.0,7.999e-05,2]
[418905410,1774523431802,-1566.24111814,8e-05,2]
[418905411,1774523431841,-296.369996,8e-05,2]
[418905412,1774523431853,-1623.06639354,8e-05,2]
[418905413,1774523431895,-225.59634207,8e-05,2]
[418905414,1774523431905,-390.7897389,8.005e-05,2]
[418905415,1774523431919,-519.2102611,8.005e-05,2]
[418905416,1774523431929,-376.65835476,8.186e-05,2]
[418905417,1774523431953,-723.34164524,8.186e-05,2]
[418905418,1774523431963,-152.71,8.219e-05,2]
[418905419,1774523431973,-713.03,8.292e-05,2]
[418905420,1774523431984,-295.11,8.326e-05,2]
[418905421,1774523431993,-272.95,8.333e-05,2]
[418905422,1774523432004,-323.07,8.593e-05,2]
[418905423,1774523432014,-3453.22,8.593e-05,2]
[418905424,1774523432022,-500.0,8.663e-05,2]
[418905425,1774523432032,-500.0,8.663e-05,2]
[418905426,1774523432041,-150.0,8.685e-05,2]
[418905427,1774523432052,-450.0,8.686e-05,2]
[418905428,1774523432061,-500.0,8.686e-05,2]
[418905429,1774523432071,-500.0,8.686e-05,2]
[418905430,1774523432082,-500.0,8.686e-05,2]
[418905431,1774523432091,-500.0,8.686e-05,2]
[418905432,1774523432101,-500.0,8.686e-05,2]
[418905433,1774523432112,-500.0,8.686e-05,2]
[418905434,1774523432123,-500.0,8.686e-05,2]
[418905435,1774523432134,-602.95361536,8.686e-05,2]
[418905436,1774523432143,-592.98243001,8.686e-05,2]
[418905437,1774523432152,-500.0,8.686e-05,2]
[418905438,1774523432161,-544.18352744,8.686e-05,2]
[418905439,1774523432171,-500.0,8.686e-05,2]
[418905440,1774523432181,-500.0,8.686e-05,2]
[418905441,1774523432192,-500.0,8.686e-05,2]
[418905442,1774523432202,-500.0,8.686e-05,2]
[418905443,1774523432212,-307.19965628,8.686e-05,2]
[418905444,1774523432223,-500.0,8.686e-05,2]
[418905445,1774523432233,-500.0,8.686e-05,2]
[418905446,1774523432243,-500.0,8.686e-05,2]
[418905447,1774523432252,-500.0,8.686e-05,2]
[418905448,1774523432263,-500.0,8.686e-05,2]
[418905449,1774523432273,-500.0,8.686e-05,2]
[418905450,1774523432283,-500.0,8.686e-05,2]
[418905451,1774523432293,-500.0,8.686e-05,2]
[418905452,1774523432303,-500.0,8.686e-05,2]
[418905453,1774523432313,-500.0,8.686e-05,2]
[418905454,1774523432322,-500.0,8.686e-05,2]
[418905455,1774523432334,-500.0,8.686e-05,2]
[418905456,1774523432343,-469.20555332,8.686e-05,2]
[418905457,1774523432353,-500.0,8.686e-05,2]
[418905458,1774523432362,-500.0,8.686e-05,2]
[418905459,1774523432371,-500.0,8.686e-05,2]
[418905460,1774523432381,-435.44019128,8.686e-05,2]
[418905461,1774523432390,-200.0,8.686e-05,2]
[418905462,1774523432399,-500.0,8.686e-05,2]
[418905463,1774523432409,-500.0,8.686e-05,2]
[418905464,1774523432419,-500.0,8.686e-05,2]
[418905465,1774523432429,-500.0,8.686e-05,2]
[418905466,1774523432438,-500.0,8.686e-05,2]
[418905467,1774523432448,-500.0,8.686e-05,2]
[418905468,1774523432458,-205.62511488,8.686e-05,2]
[418905469,1774523432467,-500.0,8.686e-05,2]
[418905470,1774523432476,-500.0,8.686e-05,2]
[418905471,1774523432486,-205.26796409,8.686e-05,2]
[418905472,1774523432496,-500.0,8.686e-05,2]
[418905473,1774523432505,-218.80061703,8.686e-05,2]
[418905474,1774523432514,-500.0,8.686e-05,2]
[418905475,1774523432523,-187.25226541,8.686e-05,2]
[418905476,1774523432532,-500.0,8.686e-05,2]
[418905477,1774523432543,-500.0,8.686e-05,2]
[418905478,1774523432552,-500.0,8.686e-05,2]
[418905479,1774523432562,-553.38846876,8.686e-05,2]
[418905480,1774523432571,-500.0,8.686e-05,2]
[418905481,1774523432580,-500.0,8.686e-05,2]
[418905482,1774523432589,-500.0,8.686e-05,2]
[418905483,1774523432598,-500.0,8.686e-05,2]
[418905484,1774523432607,-127158.17298381,8.687e-05,2]
[418905485,1774523432619,-21587.8371493,8.687e-05,2]
[418905486,1774523437773,-500.0,8.686e-05,2]
[418905487,1774523437783,-2331.20745738,8.687e-05,2]
[418905488,1774523437932,-347.66979993,8.687e-05,2]
[418905489,1774523437945,-4897.49151961,8.687e-05,2]
[418905490,1774523438038,-675460.22061691,8.687e-05,2]
[418905491,1774523438092,-11006.21017306,8.687e-05,2]
[418905493,1774523438101,-150730.0,8.687e-05,2]
[418905494,1774523438110,-546.94,8.752e-05,2]
[418905495,1774523438120,-588.47473116,8.763e-05,2]
[418905496,1774523438130,-500.0,8.763e-05,2]
[418905497,1774523438140,-500.0,8.763e-05,2]
[418905499,1774523438149,-500.0,8.763e-05,2]
[418905500,1774523438158,-500.0,8.763e-05,2]
[418905501,1774523438167,-500.41700518,8.763e-05,2]
[418905502,1774523438177,-5000.0,8.782e-05,2]
[418905503,1774523438186,-400.86393523,8.782e-05,2]
[418905504,1774523438195,-250.0,8.782e-05,2]
[418905505,1774523438204,-250.0,8.784e-05,2]
[418905506,1774523438213,-82227.27466782,8.787e-05,2]
[418905509,1774523440285,-37808.36663339,8.787e-05,2]
[418905510,1774523440339,-807.438462,8.787e-05,2]
[418905511,1774523440759,-2205.71495633,8.787e-05,2]
[418905519,1774523445609,-1558.375,8.787e-05,2]
[418905520,1774523445979,-768.60874995,8.787e-05,2]
[418905521,1774523447915,-13908.38330058,8.787e-05,2]
[418905522,1774523447969,-1784.57115365,8.787e-05,2]
[418905523,1774523448022,-37233.3857662,8.787e-05,2]
[418905524,1774523448339,-4302.85184883,8.787e-05,2]
[418905525,1774523448351,-510.13958758,8.787e-05,2]
[418905527,1774523464653,350.0,8.787e-05,3]
[418905528,1774523470472,159.0,8.787e-05,3]
[418905529,1774523526853,333.0,8.787e-05,3]
[418905530,1774523533039,159.0,8.787e-05,3]
[418905552,1774523586821,316.0,8.787e-05,3]
[418905553,1774523592796,160.0,8.787e-05,3]
[418905555,1774523615306,-1087.31,8.251e-05,2]
[418905556,1774523615335,-745.41,8.284e-05,2]
[418905557,1774523615362,-500.0,8.563e-05,2]
[418905558,1774523615389,-300.0,8.585e-05,2]
[418905559,1774523615417,-270.6044657,8.585e-05,2]
[418905560,1774523615446,-343.66471444,8.585e-05,2]
[418905561,1774523615474,-500.0,8.585e-05,2]
[418905562,1774523615508,-500.0,8.585e-05,2]
[418905563,1774523615541,-500.0,8.585e-05,2]
[418905564,1774523615572,-6.03163972,8.585e-05,2]
[418905565,1774523615629,-493.96836028,8.585e-05,2]
[418905566,1774523615660,-500.0,8.585e-05,2]
[418905567,1774523615691,-500.0,8.585e-05,2]
[418905568,1774523615723,-500.0,8.585e-05,2]
[418905569,1774523615754,-500.0,8.585e-05,2]
[418905570,1774523615786,-500.0,8.585e-05,2]
[418905571,1774523615817,-500.0,8.585e-05,2]
[418905572,1774523615848,-500.0,8.585e-05,2]
[418905573,1774523615880,-500.0,8.585e-05,2]
[418905574,1774523615912,-500.0,8.585e-05,2]
[418905575,1774523616076,-500.0,8.585e-05,2]
[418905576,1774523616110,-500.0,8.585e-05,2]
[418905577,1774523616144,-500.0,8.585e-05,2]
[418905578,1774523616177,-500.0,8.585e-05,2]
[418905579,1774523616215,-215.47686689,8.585e-05,2]
[418905580,1774523616247,-500.0,8.585e-05,2]
[418905581,1774523616279,-500.0,8.585e-05,2]
[418905582,1774523616312,-500.0,8.585e-05,2]
[418905583,1774523616344,-500.0,8.585e-05,2]
[418905584,1774523616376,-500.0,8.585e-05,2]
[418905585,1774523616409,-69.05626622,8.585e-05,2]
[418905586,1774523616543,-430.94373378,8.585e-05,2]
[418905587,1774523616576,-500.0,8.585e-05,2]
[418905588,1774523616610,-500.0,8.585e-05,2]
[418905589,1774523616642,-500.0,8.585e-05,2]
[418905590,1774523616677,-500.0,8.585e-05,2]
[418905591,1774523616707,-150.0,8.585e-05,2]
[418905592,1774523629680,500.0,8.585e-05,2]
[418905593,1774523641179,300.0,8.585e-05,2]
[418905594,1774523647162,300.0,8.585e-05,3]
[418905595,1774523653294,500.0,8.585e-05,2]
[418905596,1774523653347,506.03163972,8.585e-05,2]
[418905600,1774523656974,500.0,8.585e-05,2]
[418905601,1774523671141,500.0,8.585e-05,2]
[418905602,1774523684482,500.0,8.585e-05,2]
[418905603,1774523699558,500.0,8.585e-05,2]
[418905604,1774523701495,1200.0,8.585e-05,2]
[418905605,1774523703311,150.0,8.585e-05,2]
[418905606,1774523704027,300.0,8.585e-05,2]
[418905607,1774523705284,406.0,8.585e-05,3]
[418905608,1774523711299,285.0,8.585e-05,3]
[418905609,1774523714202,500.0,8.585e-05,2]
[418905610,1774523726113,500.0,8.585e-05,2]
[418905611,1774523738485,500.0,8.585e-05,2]
[418905612,1774523749895,500.0,8.585e-05,2]
[418905613,1774523753419,586.39,8.102e-05,2]
[418905614,1774523761803,300.0,8.585e-05,2]
[418905615,1774523761843,500.0,8.585e-05,2]
[418905616,1774523765309,271.0,8.585e-05,3]
[418905617,1774523774820,500.0,8.585e-05,2]
[418905618,1774523780945,3463.62,8.217e-05,2]
[418905619,1774523780967,6630.63,8.217e-05,2]
[418905620,1774523786201,500.0,8.585e-05,2]
[418905622,1774523797891,500.0,8.585e-05,2]
[418905623,1774523806076,2369.38,8.586e-05,2]
[418905624,1774523806102,6902.62,8.586e-05,2]
[418905625,1774523809320,362.34359934,8.585e-05,2]
[418905626,1774523820793,500.0,8.585e-05,2]
[418905627,1774523820853,500.0,8.585e-05,2]
[418905628,1774523820900,465.5490197,8.585e-05,2]
[418905629,1774523826836,257.0,8.585e-05,3]
[418905630,1774523835691,500.0,8.585e-05,2]
[418905631,1774523835745,500.0,8.585e-05,2]
[418905632,1774523835802,269.49738096,8.585e-05,2]
[418905633,1774523835828,196.05163874,8.585e-05,2]
[418905634,1774523850346,500.0,8.585e-05,2]
[418905635,1774523850401,500.0,8.585e-05,2]
[418905636,1774523850452,500.0,8.585e-05,2]
[418905637,1774523850512,500.0,8.585e-05,2]
[418905638,1774523850572,637.98823546,8.585e-05,2]
[418905640,1774523868135,500.0,8.585e-05,2]
[418905641,1774523868183,500.0,8.585e-05,2]
[418905642,1774523868235,465.5490197,8.585e-05,2]
[418905643,1774523883090,150.0,8.585e-05,2]
[418905644,1774523883164,319.50457963,8.585e-05,2]
[418905645,1774523890576,244.0,8.585e-05,3]
[418905646,1774523905385,3074.31,7.804e-05,2]
[418905647,1774523941450,300.0,8.585e-05,2]
[418905648,1774523946835,232.0,8.585e-05,3]